Workbook

Sheet Datos
C2: Calculadora Crédito Efectivo / Consumo
C5: Por favor ingresa los siguientes datos:
C7: Fecha de desembolso | H7: 2024-07-22 | I7: (dd/mm/aaaa)
C8: Día de Pago (1-31) | H8: =+Varios!D71 -> 30
C9: Plazo (en Meses) | H9: =+Varios!G72 -> 1
H10: 0
C11: Moneda
C12: Seguro de Protección Financiera
C13: Envío de Estado de Cuenta
C14: Tipo Cliente
C15: Rango de Ingreso
C16: Tasa de Interés Efectiva Anual (En base a 360 días) | H16: =+IF(Varios!$I$33=3,VLOOKUP("Otros",Varios!$D$24:$G$60,3,FALSE),VLOOKUP(Varios!I33&Varios!O43,Varios!B24:G60,IF(Varios!C4=1,5,6),FALSE)) -> 0.959
C17: Ingrese Tasa | H17: 0.959
C18: Tasa de Interés Nominal Anual | H18: =+((1+H16)^(1/12)-1)*12 -> 0.6916313575
H19: =+(1+H18/12+H21)^12-1 -> 0.9847143875
C20: Tipo de Seguro de Desgravamen
C21: Tasa mensual de Seguro de Desgravamen* | H21: =+IF(Varios!G5=1,Varios!H2,IF(Varios!G5=2,Varios!H3,Varios!H4)) -> 0.00115
C22: Evaluación de Póliza Endosada | H22: =+IF(Varios!G5=2,Varios!F4,0) -> 0
C23: Envío Físico de Estado de Cuenta | G23: =+G44 -> S/. | H23: =IF(Varios!$K$5=1,VLOOKUP(Varios!C4,Varios!B2:E3,4,FALSE),0) -> 0
C24: Cuota Adicional en Julio | H24: 0
C25: Cuota Adicional en Diciembre | H25: 0
C26: Modalidad de pago (Cuotas por Año) | H26: =12+H24+H25 -> 12
C27: Ingrese Monto a solicitar | G27: =+IF(Varios!C4=1,"S/.","US$") -> S/. | H27: 500
C28: Intereses por Cambio de Fecha | G28: =+IF(Varios!C4=1,"S/.","US$") -> S/. | H28: =IFERROR(+Cronograma!AB13,"") -> 0
C29: Seguros por Cambio de Fecha | G29: =+IF(Varios!C4=1,"S/.","US$") -> S/. | H29: =+IFERROR(Cronograma!AF13,"") -> 0
C31: =IF(Varios!K15<>1,"","Crédito con SPF") -> 
C36: =IF(Varios!K15<>1,"","Cuota con SPF") ->  | G36: =IF(Varios!K15<>1,"",IF(Varios!C4=1,"S/.","US$")) ->  | H36: =IF(Varios!K15<>1,"",Cronograma!$W$14) -> 
C37: =IF(Varios!K15<>1,"","Cuota sin SPF") ->  | G37: =IF(Varios!K15<>1,"",IF(Varios!C4=1,"S/.","US$")) ->  | H37: =IF(Varios!K15<>1,"",$H$36-Varios!$L$15) -> 
C38: =IF(Varios!K15<>1,"","Diferencia") ->  | G38: =IF(Varios!K15<>1,"",IF(Varios!C4=1,"S/.","US$")) ->  | H38: =IF(Varios!K15<>1,"",H36-H37) -> 
D40: No olvides presionar el botón para calcular la cuota
C41: Monto Fijo | G41: =+G43 -> S/. | H41: =+H46-H42-H43 -> 
C42: Administración de Póliza Endosada | G42: =+G44 -> S/. | H42: =+H22 -> 0
C43: Portes Mensuales+SPF | G43: =+G46 -> S/. | H43: =+H23+H38 -> 
C44: Cuota Mensual | G44: =+G27 -> S/. | H44: =+Cronograma!$W$14 -> 530.3535723
C46: Cuota Mensual Total | G46: =+G44 -> S/. | H46: =+H44 -> 530.3535723
C47: =+Cronograma!K5 -> Tasa de Costo Efectivo Anual (en base a 360 días): | H47: =+Cronograma!Q5 -> 0.9826164794
C51: Nota:
C52: Las cuotas son referenciales, sujetas a calificación y a la fecha de desembolso del crédito y no
C53: incluyen ITF.
C54: (*) El cliente tiene derecho a elegir la contratación del seguro ofrecido por el BCP o a contratar un seguro directamente con una aseguradora, o a través de un corredor de seguros, siempre que cumpla con las condiciones informadas por el BCP. El trámite para el endoso lo puede realizar gratuitamente en cualquier agencia BCP. Para mayor información https://www.viabcp.com/creditos/credito-efectivo/prestamo-personal-bcp.

Sheet Presentación
A3: Simulación de Crédito Efectivo / Consumo
A7: Datos del Crédito
A8: Monto del Préstamo | C8: =+IF(Varios!$C$4=1,"S/.","US$") -> S/. | D8: =Cronograma!M12 -> 500
A9: Plazo de Financiamiento (meses) | D9: =+Datos!H9 -> 1
A10: Número de Cuotas Fijas Anuales | D10: =+Datos!H26 -> 12
A11: Tasa de Interés Efectiva Anual (en base a 360 días) | D11: =+Datos!H16 -> 0.959
A12: Fecha de Desembolso | D12: =+Datos!H7 -> 2024-07-22
A13: Fecha de Pago | D13: =+CONCATENATE(DAY(Datos!H8)," ","de cada mes") -> 30 de cada mes
A14: Portes Mensuales | C14: =+IF(Varios!$C$4=1,"S/.","US$") -> S/. | D14: =+Datos!H23 -> 0
A15: Tasa de Seguro de Desgravamen | D15: =+Datos!H21 -> 0.00115
A16: Seguro de Protección Financiera (SPF) 0.192% | D16: =+IF(Varios!$K$15=1,Varios!$K$12,Varios!$K$13) -> 0
A18: Cuota Mensual | C18: =+IF(Varios!$C$4=1,"S/.","US$") -> S/. | D18: =+Datos!H46 -> 530.3535723
A19: Tasa de Costo Efectivo Anual (base 360 días) | D19: =+Datos!H47 -> 0.9826164794
A21: Total de Intereses a Pagar | C21: =+IF(Varios!$C$4=1,"S/.","US$") -> S/. | D21: =+Cronograma!P9 -> 29.77857234
A22: Total Seguro de Desgravamen | C22: =+IF(Varios!$C$4=1,"S/.","US$") -> S/. | D22: =+Cronograma!Q9 -> 0.575
A23: Total Envío de información periódica | C23: =+IF(Varios!$C$4=1,"S/.","US$") -> S/. | D23: =+Cronograma!T9 -> 0
A24: Total Amortización | C24: =+IF(Varios!$C$4=1,"S/.","US$") -> S/. | D24: =+Cronograma!R9 -> 500
A25: Total Seguro de Protección Financiera | C25: =+IF(Varios!$C$4=1,"S/.","US$") -> S/. | D25: =+Cronograma!V9 -> 0
A26: Cantidad Total a Pagar | C26: =+IF(Varios!$C$4=1,"S/.","US$") -> S/. | D26: =+Cronograma!Q6 -> 530.3535723
A28: NOTA: Las cuotas son referenciales, sujetas a calificación y a la fecha de desembolso del crédito. No incluyen ITF.

Sheet Cronograma
A1: =+Datos!H10 -> 0 | B1: =+Datos!H9+1+A1 -> 2 | C1: =+((1+Datos!H19)^(0.0833333333333333)-1)*12/365 -> 0.001932688651 | D1: =+Datos!H8 -> 30 | E1: =SUM(R14:R73) -> 500 | F1: =+E1-M12 -> 0 | G1: 530.3535723 | AH1: =+AH2-AH10 -> 7.08763431e-05
K2: Cronograma | AH2: =+M12 -> 500
K3: NOTA: Todo crédito se encuentra sujeto a la evaluación crediticia del Banco, quien determina el monto y plazo a otorgar. Este documento ha sido emitido en base a la información proporcionada por el cliente y tiene caracter referencial.
K4: Tasa de Interés Efectiva Anual (en base a 360 días): | Q4: =+Datos!H16 -> 0.959
K5: Tasa de Costo Efectivo Anual (en base a 360 días): | Q5: =+AI11 -> 0.9826164794
K6: Cantidad Total a Pagar: | P6: =+IF(Varios!C4=1,"S/.","US$") -> S/. | Q6: =+SUM(X12:X73) -> 530.3535723
N8: Int + Seg | O8: Int + Seg | P8: Interés | Q8: Seguro Desg | R8: Amortización | S8: Cuota | T8: Envío Físico de Estado de Cuenta | U8: Evaluación de Póliza Endosada | V8: Seguro de Protección Financiera | W8: Cuota | X8: Cuota
K9: Totales a pagar | P9: =+SUM(P12:P73) -> 29.77857234 | Q9: =+SUM(Q12:Q73) -> 0.575 | R9: 500 | S9: 530.3535723 | T9: 0 | U9: 0 | V9: 0 | W9: 530.3535723 | X9: 530.3535723
E10: Fecha | G10: Int. Acum. | H10: Seg. | Z10: Interes x Pagar | AD10: Seguros x Pagar | AH10: =+SUM(AH13:AH73) -> 499.9999291
D11: Dia | E11: Mes | F11: Año | H11: Acum | K11: # | L11: Fecha | M11: Saldo | N11: Int + Seg | O11: Int + Seg | P11: Interés | Q11: Seguro Desg | R11: Amortización | S11: Cuota | T11: Envío Físico de Estado de Cuenta | U11: Evaluación de Póliza Endosada | V11: Seguro de Protección Financiera | W11: Cuota | X11: Cuota | Z11: Calculado | AA11: Pdte | AB11: Total a Pagar | AD11: Calculado | AE11: Pdte | AF11: Total a Pagar | AH11: 1.00155269 | AI11: =+(1+AH11)^(360/365)-1 -> 0.9826164794
A12: 0 | B12: =IF(+MONTH(Datos!H7)=12,0,MONTH(Datos!H7)) -> 7 | D12: =DAY(Datos!H7) -> 22 | E12: =+MONTH(Datos!H7) -> 7 | F12: =YEAR(Datos!H7) -> 2024 | L12: =IF(AND(D12<10,E12<10),CONCATENATE("0",D12,"/","0",E12,"/",F12),IF(AND(D12>9,E12<10),CONCATENATE(D12,"/","0",E12,"/",F12),IF(AND(D12<10,E12>9),CONCATENATE("0",D12,"/",E12,"/",F12),IF(AND(D12>9,E12>9),CONCATENATE(D12,"/",E12,"/",F12))))) -> 22/07/2024 | M12: =Datos!H27 -> 500
A13: =+IF(B1>0,A12+1,0) -> 1 | B13: =+IF(A13=0,0,IF(B12=12,1,B12+1)) -> 8 | D13: =D12 -> 22 | E13: =E12 -> 7 | F13: =F12 -> 2024 | G13: =+P13 -> 0 | H13: =+Q13 -> 0 | J13: =+IF(A13=0,"",A13) -> 1 | L13: =IF(J13="","",IF(AND(D13<10,E13<10),CONCATENATE("0",D13,"/","0",E13,"/",F13),IF(AND(D13>9,E13<10),CONCATENATE(D13,"/","0",E13,"/",F13),IF(AND(D13<10,E13>9),CONCATENATE("0",D13,"/",E13,"/",F13),IF(AND(D13>9,E13>9),CONCATENATE(D13,"/",E13,"/",F13)))))) -> 22/07/2024 | M13: =IF(B13=0,"",M12) -> 500 | N13: =IF(A13=0,"",IF(AND(Datos!$H$24>0,E13=7),IF(O13<$G$1*Datos!$H$24,O13,$G$1*Datos!$H$24),IF(AND(Datos!$H$25>0,E13=12),IF(O13<$G$1*Datos!$H$25,O13,$G$1*Datos!$H$25),IF((AB13+AF13)<S13,(AB13+AF13),S13)))) -> 0 | O13: =IF(A13=0,"",IF(S13=0,0,AB13+AF13)) -> 0 | P13: =IF($A13=0,"",IF(S13=0,0,IF(AB13<=(N13-Q13),AB13,N13-Q13))) -> 0 | Q13: =IF($A13=0,"",IF(S13=0,0,IF(AF13<=N13,AF13,N13))) -> 0 | R13: =IF(B13=0,"",IF(X13=0,0,S13-N13)) -> 0 | S13: 0 | T13: =+IF(S13="","",IF(Varios!$K$5=1,IF(S13=0,0,IF(Varios!$D$4=1,Varios!$D$2,Varios!$D$3)),0)) -> 0 | U13: =+IF(S13="","",IF(S13=0,0,Varios!$F$4)) -> 0 | V13: =IF(S13="","",IF(Varios!$K$15=1,IF(S13=0,0,Datos!$H$27*Varios!$K$12),0)) -> 0 | W13: =+IF(T13="","",S13+T13+U13+V13) -> 0 | X13: =+IF(W13="","",W13) -> 0 | AG13: =IF(L13="","",L13-L$12) -> 0 | AH13: =+W13/((1+$AH$11)^(AG13/365)) -> 0
A14: =+IF(OR(A13=$B$1,A13=0),0,A13+1) -> 2 | B14: 9 | D14: =+IF($D$1=31,IF(F14/4=TRUNC(F14/4),VLOOKUP(E14,Varios!$C$10:$G$21,3,FALSE),VLOOKUP(E14,Varios!$C$10:$G$21,2,FALSE)),IF($D$1>28,IF(F14/4=TRUNC(F14/4),VLOOKUP(E14,Varios!$C$10:$G$21,5,FALSE),VLOOKUP(E14,Varios!$C$10:$G$21,4,FALSE)),$D$1)) -> 22 | E14: =IF(E13=12,1,E13+1) -> 8 | F14: =+IF(E13=E14,F13,IF(E13+1>12,F13+1,F13)) -> 2024 | G14: =+IF(P14="","",G13+P14) -> 29.77857234 | H14: =+IF(Q14="","",H13+Q14) -> 0.575 | J14: =+IF(A14=0,"",A14) -> 2 | K14: =+IF(J14="","",J14-1) -> 1 | L14: =L13+_xlfn.NUMBERVALUE(Datos!$H$8) -> 2024-08-21 | M14: =IF(B14=0,"",IF($A$1+1=J14,M13+G14+H14,IF($A$1+1<J14,M13-R14,M13))) -> 0 | N14: =IF(A14=0,"",IF(AND(Datos!$H$24>0,E14=7),IF(O14<$G$1*Datos!$H$24,O14,$G$1*Datos!$H$24),IF(AND(Datos!$H$25>0,E14=12),IF(O14<$G$1*Datos!$H$25,O14,$G$1*Datos!$H$25),IF((AB14+AF14)<S14,(AB14+AF14),S14)))) -> 30.35357234 | O14: =IF(A14=0,"",IF(S14=0,0,AB14+AF14)) -> 30.35357234 | P14: =IF($A14=0,"",IF(S14=0,0,IF(AB14<=(N14-Q14),AB14,N14-Q14))) -> 29.77857234 | Q14: =IF($A14=0,"",IF(S14=0,0,IF(AF14<=N14,AF14,N14))) -> 0.575 | R14: =IF(B14=0,"",IF(X14=0,0,S14-N14)) -> 500 | S14: =+IF(A14=0,"",IF(K14<=$A$1,0,IF(E14=7,$G$1*(1+Datos!$H$24)+Datos!$H$23*(Datos!$H$24)+Datos!$H$24*Datos!$H$42,IF(Cronograma!E14=12,Cronograma!$G$1*(1+Datos!$H$25)+Datos!$H$23*(Datos!$H$25)+Datos!$H$25*Datos!$H$42,Cronograma!$G$1)))) -> 530.3535723 | T14: =+IF(S14="","",IF(Varios!$K$5=1,IF(S14=0,0,IF(Varios!$D$4=1,Varios!$D$2,Varios!$D$3)),0)) -> 0 | U14: =+IF(S14="","",IF(S14=0,0,Varios!$F$4)) -> 0 | V14: =IF(S14="","",IF(Varios!$K$15=1,IF(S14=0,0,Datos!$H$27*Varios!$K$12),0)) -> 0 | W14: =+IF(T14="","",S14+T14+U14+V14) -> 530.3535723 | X14: =+IF(W14="","",W14) -> 530.3535723 | Z14: =IF(J14="","",Datos!$H$18/360*(L14-L13+1)*M13) -> 29.77857234 | AA14: =IF(Z14="","",AB13-P13) -> 0 | AB14: =IF(Z14="","",SUM(Z14:AA14)) -> 29.77857234 | AD14: =IF(J14="","",Datos!$H$21*12/360*(L14-L13)*M13) -> 0.575 | AE14: =IF(AD14="","",AF13-Q13) -> 0 | AF14: =IF(AD14="","",SUM(AD14:AE14)) -> 0.575 | AG14: =IF(L14="","",L14-L$12+1) -> 31 | AH14: =+IF(X14="","",W14/((1+$AH$11)^(AG14/365))) -> 499.9999291
A15: 0 | B15: 0 | D15: =+IF($D$1=31,IF(F15/4=TRUNC(F15/4),VLOOKUP(E15,Varios!$C$10:$G$21,3,FALSE),VLOOKUP(E15,Varios!$C$10:$G$21,2,FALSE)),IF($D$1>28,IF(F15/4=TRUNC(F15/4),VLOOKUP(E15,Varios!$C$10:$G$21,5,FALSE),VLOOKUP(E15,Varios!$C$10:$G$21,4,FALSE)),$D$1)) -> 22 | E15: 9 | F15: 2024
A16: 0 | B16: 0 | D16: =+IF($D$1=31,IF(F16/4=TRUNC(F16/4),VLOOKUP(E16,Varios!$C$10:$G$21,3,FALSE),VLOOKUP(E16,Varios!$C$10:$G$21,2,FALSE)),IF($D$1>28,IF(F16/4=TRUNC(F16/4),VLOOKUP(E16,Varios!$C$10:$G$21,5,FALSE),VLOOKUP(E16,Varios!$C$10:$G$21,4,FALSE)),$D$1)) -> 22 | E16: 10 | F16: 2024
A17: 0 | B17: 0 | D17: =+IF($D$1=31,IF(F17/4=TRUNC(F17/4),VLOOKUP(E17,Varios!$C$10:$G$21,3,FALSE),VLOOKUP(E17,Varios!$C$10:$G$21,2,FALSE)),IF($D$1>28,IF(F17/4=TRUNC(F17/4),VLOOKUP(E17,Varios!$C$10:$G$21,5,FALSE),VLOOKUP(E17,Varios!$C$10:$G$21,4,FALSE)),$D$1)) -> 22 | E17: 11 | F17: 2024
A18: 0 | B18: 0 | D18: =+IF($D$1=31,IF(F18/4=TRUNC(F18/4),VLOOKUP(E18,Varios!$C$10:$G$21,3,FALSE),VLOOKUP(E18,Varios!$C$10:$G$21,2,FALSE)),IF($D$1>28,IF(F18/4=TRUNC(F18/4),VLOOKUP(E18,Varios!$C$10:$G$21,5,FALSE),VLOOKUP(E18,Varios!$C$10:$G$21,4,FALSE)),$D$1)) -> 22 | E18: 12 | F18: 2024
A19: 0 | B19: 0 | D19: =+IF($D$1=31,IF(F19/4=TRUNC(F19/4),VLOOKUP(E19,Varios!$C$10:$G$21,3,FALSE),VLOOKUP(E19,Varios!$C$10:$G$21,2,FALSE)),IF($D$1>28,IF(F19/4=TRUNC(F19/4),VLOOKUP(E19,Varios!$C$10:$G$21,5,FALSE),VLOOKUP(E19,Varios!$C$10:$G$21,4,FALSE)),$D$1)) -> 22 | E19: 1 | F19: 2025
A20: 0 | B20: 0 | D20: =+IF($D$1=31,IF(F20/4=TRUNC(F20/4),VLOOKUP(E20,Varios!$C$10:$G$21,3,FALSE),VLOOKUP(E20,Varios!$C$10:$G$21,2,FALSE)),IF($D$1>28,IF(F20/4=TRUNC(F20/4),VLOOKUP(E20,Varios!$C$10:$G$21,5,FALSE),VLOOKUP(E20,Varios!$C$10:$G$21,4,FALSE)),$D$1)) -> 28 | E20: 2 | F20: 2025
A21: 0 | B21: 0 | D21: =+IF($D$1=31,IF(F21/4=TRUNC(F21/4),VLOOKUP(E21,Varios!$C$10:$G$21,3,FALSE),VLOOKUP(E21,Varios!$C$10:$G$21,2,FALSE)),IF($D$1>28,IF(F21/4=TRUNC(F21/4),VLOOKUP(E21,Varios!$C$10:$G$21,5,FALSE),VLOOKUP(E21,Varios!$C$10:$G$21,4,FALSE)),$D$1)) -> 22 | E21: 3 | F21: 2025
A22: 0 | B22: 0 | D22: =+IF($D$1=31,IF(F22/4=TRUNC(F22/4),VLOOKUP(E22,Varios!$C$10:$G$21,3,FALSE),VLOOKUP(E22,Varios!$C$10:$G$21,2,FALSE)),IF($D$1>28,IF(F22/4=TRUNC(F22/4),VLOOKUP(E22,Varios!$C$10:$G$21,5,FALSE),VLOOKUP(E22,Varios!$C$10:$G$21,4,FALSE)),$D$1)) -> 22 | E22: 4 | F22: 2025
A23: 0 | B23: 0 | D23: =+IF($D$1=31,IF(F23/4=TRUNC(F23/4),VLOOKUP(E23,Varios!$C$10:$G$21,3,FALSE),VLOOKUP(E23,Varios!$C$10:$G$21,2,FALSE)),IF($D$1>28,IF(F23/4=TRUNC(F23/4),VLOOKUP(E23,Varios!$C$10:$G$21,5,FALSE),VLOOKUP(E23,Varios!$C$10:$G$21,4,FALSE)),$D$1)) -> 22 | E23: 5 | F23: 2025
A24: 0 | B24: 0 | D24: =+IF($D$1=31,IF(F24/4=TRUNC(F24/4),VLOOKUP(E24,Varios!$C$10:$G$21,3,FALSE),VLOOKUP(E24,Varios!$C$10:$G$21,2,FALSE)),IF($D$1>28,IF(F24/4=TRUNC(F24/4),VLOOKUP(E24,Varios!$C$10:$G$21,5,FALSE),VLOOKUP(E24,Varios!$C$10:$G$21,4,FALSE)),$D$1)) -> 22 | E24: 6 | F24: 2025
A25: 0 | B25: 0 | D25: =+IF($D$1=31,IF(F25/4=TRUNC(F25/4),VLOOKUP(E25,Varios!$C$10:$G$21,3,FALSE),VLOOKUP(E25,Varios!$C$10:$G$21,2,FALSE)),IF($D$1>28,IF(F25/4=TRUNC(F25/4),VLOOKUP(E25,Varios!$C$10:$G$21,5,FALSE),VLOOKUP(E25,Varios!$C$10:$G$21,4,FALSE)),$D$1)) -> 22 | E25: 7 | F25: 2025
A26: 0 | B26: 0 | D26: =+IF($D$1=31,IF(F26/4=TRUNC(F26/4),VLOOKUP(E26,Varios!$C$10:$G$21,3,FALSE),VLOOKUP(E26,Varios!$C$10:$G$21,2,FALSE)),IF($D$1>28,IF(F26/4=TRUNC(F26/4),VLOOKUP(E26,Varios!$C$10:$G$21,5,FALSE),VLOOKUP(E26,Varios!$C$10:$G$21,4,FALSE)),$D$1)) -> 22 | E26: 8 | F26: =+IF(E25=E26,F25,IF(E25+1>12,F25+1,F25)) -> 2025
A27: 0 | B27: 0 | D27: =+IF($D$1=31,IF(F27/4=TRUNC(F27/4),VLOOKUP(E27,Varios!$C$10:$G$21,3,FALSE),VLOOKUP(E27,Varios!$C$10:$G$21,2,FALSE)),IF($D$1>28,IF(F27/4=TRUNC(F27/4),VLOOKUP(E27,Varios!$C$10:$G$21,5,FALSE),VLOOKUP(E27,Varios!$C$10:$G$21,4,FALSE)),$D$1)) -> 22 | E27: 9 | F27: 2025
A28: 0 | B28: 0 | D28: =+IF($D$1=31,IF(F28/4=TRUNC(F28/4),VLOOKUP(E28,Varios!$C$10:$G$21,3,FALSE),VLOOKUP(E28,Varios!$C$10:$G$21,2,FALSE)),IF($D$1>28,IF(F28/4=TRUNC(F28/4),VLOOKUP(E28,Varios!$C$10:$G$21,5,FALSE),VLOOKUP(E28,Varios!$C$10:$G$21,4,FALSE)),$D$1)) -> 22 | E28: 10 | F28: 2025
A29: 0 | B29: 0 | D29: =+IF($D$1=31,IF(F29/4=TRUNC(F29/4),VLOOKUP(E29,Varios!$C$10:$G$21,3,FALSE),VLOOKUP(E29,Varios!$C$10:$G$21,2,FALSE)),IF($D$1>28,IF(F29/4=TRUNC(F29/4),VLOOKUP(E29,Varios!$C$10:$G$21,5,FALSE),VLOOKUP(E29,Varios!$C$10:$G$21,4,FALSE)),$D$1)) -> 22 | E29: 11 | F29: 2025
A30: 0 | B30: 0 | D30: =+IF($D$1=31,IF(F30/4=TRUNC(F30/4),VLOOKUP(E30,Varios!$C$10:$G$21,3,FALSE),VLOOKUP(E30,Varios!$C$10:$G$21,2,FALSE)),IF($D$1>28,IF(F30/4=TRUNC(F30/4),VLOOKUP(E30,Varios!$C$10:$G$21,5,FALSE),VLOOKUP(E30,Varios!$C$10:$G$21,4,FALSE)),$D$1)) -> 22 | E30: 12 | F30: 2025
A31: 0 | B31: 0 | D31: =+IF($D$1=31,IF(F31/4=TRUNC(F31/4),VLOOKUP(E31,Varios!$C$10:$G$21,3,FALSE),VLOOKUP(E31,Varios!$C$10:$G$21,2,FALSE)),IF($D$1>28,IF(F31/4=TRUNC(F31/4),VLOOKUP(E31,Varios!$C$10:$G$21,5,FALSE),VLOOKUP(E31,Varios!$C$10:$G$21,4,FALSE)),$D$1)) -> 22 | E31: 1 | F31: 2026
A32: 0 | B32: 0 | D32: =+IF($D$1=31,IF(F32/4=TRUNC(F32/4),VLOOKUP(E32,Varios!$C$10:$G$21,3,FALSE),VLOOKUP(E32,Varios!$C$10:$G$21,2,FALSE)),IF($D$1>28,IF(F32/4=TRUNC(F32/4),VLOOKUP(E32,Varios!$C$10:$G$21,5,FALSE),VLOOKUP(E32,Varios!$C$10:$G$21,4,FALSE)),$D$1)) -> 28 | E32: 2 | F32: 2026
A33: 0 | B33: 0 | D33: =+IF($D$1=31,IF(F33/4=TRUNC(F33/4),VLOOKUP(E33,Varios!$C$10:$G$21,3,FALSE),VLOOKUP(E33,Varios!$C$10:$G$21,2,FALSE)),IF($D$1>28,IF(F33/4=TRUNC(F33/4),VLOOKUP(E33,Varios!$C$10:$G$21,5,FALSE),VLOOKUP(E33,Varios!$C$10:$G$21,4,FALSE)),$D$1)) -> 22 | E33: 3 | F33: 2026
A34: 0 | B34: 0 | D34: =+IF($D$1=31,IF(F34/4=TRUNC(F34/4),VLOOKUP(E34,Varios!$C$10:$G$21,3,FALSE),VLOOKUP(E34,Varios!$C$10:$G$21,2,FALSE)),IF($D$1>28,IF(F34/4=TRUNC(F34/4),VLOOKUP(E34,Varios!$C$10:$G$21,5,FALSE),VLOOKUP(E34,Varios!$C$10:$G$21,4,FALSE)),$D$1)) -> 22 | E34: 4 | F34: 2026
A35: 0 | B35: 0 | D35: =+IF($D$1=31,IF(F35/4=TRUNC(F35/4),VLOOKUP(E35,Varios!$C$10:$G$21,3,FALSE),VLOOKUP(E35,Varios!$C$10:$G$21,2,FALSE)),IF($D$1>28,IF(F35/4=TRUNC(F35/4),VLOOKUP(E35,Varios!$C$10:$G$21,5,FALSE),VLOOKUP(E35,Varios!$C$10:$G$21,4,FALSE)),$D$1)) -> 22 | E35: 5 | F35: 2026
A36: 0 | B36: 0 | D36: =+IF($D$1=31,IF(F36/4=TRUNC(F36/4),VLOOKUP(E36,Varios!$C$10:$G$21,3,FALSE),VLOOKUP(E36,Varios!$C$10:$G$21,2,FALSE)),IF($D$1>28,IF(F36/4=TRUNC(F36/4),VLOOKUP(E36,Varios!$C$10:$G$21,5,FALSE),VLOOKUP(E36,Varios!$C$10:$G$21,4,FALSE)),$D$1)) -> 22 | E36: 6 | F36: 2026
A37: 0 | B37: 0 | D37: =+IF($D$1=31,IF(F37/4=TRUNC(F37/4),VLOOKUP(E37,Varios!$C$10:$G$21,3,FALSE),VLOOKUP(E37,Varios!$C$10:$G$21,2,FALSE)),IF($D$1>28,IF(F37/4=TRUNC(F37/4),VLOOKUP(E37,Varios!$C$10:$G$21,5,FALSE),VLOOKUP(E37,Varios!$C$10:$G$21,4,FALSE)),$D$1)) -> 22 | E37: 7 | F37: 2026
A38: 0 | B38: 0 | D38: =+IF($D$1=31,IF(F38/4=TRUNC(F38/4),VLOOKUP(E38,Varios!$C$10:$G$21,3,FALSE),VLOOKUP(E38,Varios!$C$10:$G$21,2,FALSE)),IF($D$1>28,IF(F38/4=TRUNC(F38/4),VLOOKUP(E38,Varios!$C$10:$G$21,5,FALSE),VLOOKUP(E38,Varios!$C$10:$G$21,4,FALSE)),$D$1)) -> 22 | E38: 8 | F38: 2026
A39: 0 | B39: 0 | D39: =+IF($D$1=31,IF(F39/4=TRUNC(F39/4),VLOOKUP(E39,Varios!$C$10:$G$21,3,FALSE),VLOOKUP(E39,Varios!$C$10:$G$21,2,FALSE)),IF($D$1>28,IF(F39/4=TRUNC(F39/4),VLOOKUP(E39,Varios!$C$10:$G$21,5,FALSE),VLOOKUP(E39,Varios!$C$10:$G$21,4,FALSE)),$D$1)) -> 22 | E39: 9 | F39: =+IF(E38=E39,F38,IF(E38+1>12,F38+1,F38)) -> 2026
A40: 0 | B40: 0 | D40: =+IF($D$1=31,IF(F40/4=TRUNC(F40/4),VLOOKUP(E40,Varios!$C$10:$G$21,3,FALSE),VLOOKUP(E40,Varios!$C$10:$G$21,2,FALSE)),IF($D$1>28,IF(F40/4=TRUNC(F40/4),VLOOKUP(E40,Varios!$C$10:$G$21,5,FALSE),VLOOKUP(E40,Varios!$C$10:$G$21,4,FALSE)),$D$1)) -> 22 | E40: 10 | F40: 2026
A41: 0 | B41: 0 | D41: =+IF($D$1=31,IF(F41/4=TRUNC(F41/4),VLOOKUP(E41,Varios!$C$10:$G$21,3,FALSE),VLOOKUP(E41,Varios!$C$10:$G$21,2,FALSE)),IF($D$1>28,IF(F41/4=TRUNC(F41/4),VLOOKUP(E41,Varios!$C$10:$G$21,5,FALSE),VLOOKUP(E41,Varios!$C$10:$G$21,4,FALSE)),$D$1)) -> 22 | E41: 11 | F41: 2026
A42: 0 | B42: 0 | D42: =+IF($D$1=31,IF(F42/4=TRUNC(F42/4),VLOOKUP(E42,Varios!$C$10:$G$21,3,FALSE),VLOOKUP(E42,Varios!$C$10:$G$21,2,FALSE)),IF($D$1>28,IF(F42/4=TRUNC(F42/4),VLOOKUP(E42,Varios!$C$10:$G$21,5,FALSE),VLOOKUP(E42,Varios!$C$10:$G$21,4,FALSE)),$D$1)) -> 22 | E42: 12 | F42: 2026
A43: 0 | B43: 0 | D43: =+IF($D$1=31,IF(F43/4=TRUNC(F43/4),VLOOKUP(E43,Varios!$C$10:$G$21,3,FALSE),VLOOKUP(E43,Varios!$C$10:$G$21,2,FALSE)),IF($D$1>28,IF(F43/4=TRUNC(F43/4),VLOOKUP(E43,Varios!$C$10:$G$21,5,FALSE),VLOOKUP(E43,Varios!$C$10:$G$21,4,FALSE)),$D$1)) -> 22 | E43: 1 | F43: 2027
A44: 0 | B44: 0 | D44: =+IF($D$1=31,IF(F44/4=TRUNC(F44/4),VLOOKUP(E44,Varios!$C$10:$G$21,3,FALSE),VLOOKUP(E44,Varios!$C$10:$G$21,2,FALSE)),IF($D$1>28,IF(F44/4=TRUNC(F44/4),VLOOKUP(E44,Varios!$C$10:$G$21,5,FALSE),VLOOKUP(E44,Varios!$C$10:$G$21,4,FALSE)),$D$1)) -> 28 | E44: 2 | F44: 2027
A45: 0 | B45: 0 | D45: =+IF($D$1=31,IF(F45/4=TRUNC(F45/4),VLOOKUP(E45,Varios!$C$10:$G$21,3,FALSE),VLOOKUP(E45,Varios!$C$10:$G$21,2,FALSE)),IF($D$1>28,IF(F45/4=TRUNC(F45/4),VLOOKUP(E45,Varios!$C$10:$G$21,5,FALSE),VLOOKUP(E45,Varios!$C$10:$G$21,4,FALSE)),$D$1)) -> 22 | E45: 3 | F45: 2027
A46: 0 | B46: 0 | D46: =+IF($D$1=31,IF(F46/4=TRUNC(F46/4),VLOOKUP(E46,Varios!$C$10:$G$21,3,FALSE),VLOOKUP(E46,Varios!$C$10:$G$21,2,FALSE)),IF($D$1>28,IF(F46/4=TRUNC(F46/4),VLOOKUP(E46,Varios!$C$10:$G$21,5,FALSE),VLOOKUP(E46,Varios!$C$10:$G$21,4,FALSE)),$D$1)) -> 22 | E46: 4 | F46: 2027 | G46: =+IF(P46="","",G45+P46) ->  | H46: =+IF(Q46="","",H45+Q46) ->  | AH46: =+IF(X46="","",W46/((1+$AH$11)^(AG46/365))) -> 
A47: 0 | B47: 0 | D47: =+IF($D$1=31,IF(F47/4=TRUNC(F47/4),VLOOKUP(E47,Varios!$C$10:$G$21,3,FALSE),VLOOKUP(E47,Varios!$C$10:$G$21,2,FALSE)),IF($D$1>28,IF(F47/4=TRUNC(F47/4),VLOOKUP(E47,Varios!$C$10:$G$21,5,FALSE),VLOOKUP(E47,Varios!$C$10:$G$21,4,FALSE)),$D$1)) -> 22 | E47: 5 | F47: 2027
A48: 0 | B48: 0 | D48: =+IF($D$1=31,IF(F48/4=TRUNC(F48/4),VLOOKUP(E48,Varios!$C$10:$G$21,3,FALSE),VLOOKUP(E48,Varios!$C$10:$G$21,2,FALSE)),IF($D$1>28,IF(F48/4=TRUNC(F48/4),VLOOKUP(E48,Varios!$C$10:$G$21,5,FALSE),VLOOKUP(E48,Varios!$C$10:$G$21,4,FALSE)),$D$1)) -> 22 | E48: 6 | F48: 2027
A49: 0 | B49: 0 | D49: =+IF($D$1=31,IF(F49/4=TRUNC(F49/4),VLOOKUP(E49,Varios!$C$10:$G$21,3,FALSE),VLOOKUP(E49,Varios!$C$10:$G$21,2,FALSE)),IF($D$1>28,IF(F49/4=TRUNC(F49/4),VLOOKUP(E49,Varios!$C$10:$G$21,5,FALSE),VLOOKUP(E49,Varios!$C$10:$G$21,4,FALSE)),$D$1)) -> 22 | E49: 7 | F49: 2027
A50: 0 | B50: 0 | D50: =+IF($D$1=31,IF(F50/4=TRUNC(F50/4),VLOOKUP(E50,Varios!$C$10:$G$21,3,FALSE),VLOOKUP(E50,Varios!$C$10:$G$21,2,FALSE)),IF($D$1>28,IF(F50/4=TRUNC(F50/4),VLOOKUP(E50,Varios!$C$10:$G$21,5,FALSE),VLOOKUP(E50,Varios!$C$10:$G$21,4,FALSE)),$D$1)) -> 22 | E50: 8 | F50: 2027
A51: 0 | B51: 0 | D51: =+IF($D$1=31,IF(F51/4=TRUNC(F51/4),VLOOKUP(E51,Varios!$C$10:$G$21,3,FALSE),VLOOKUP(E51,Varios!$C$10:$G$21,2,FALSE)),IF($D$1>28,IF(F51/4=TRUNC(F51/4),VLOOKUP(E51,Varios!$C$10:$G$21,5,FALSE),VLOOKUP(E51,Varios!$C$10:$G$21,4,FALSE)),$D$1)) -> 22 | E51: 9 | F51: 2027
A52: 0 | B52: 0 | D52: =+IF($D$1=31,IF(F52/4=TRUNC(F52/4),VLOOKUP(E52,Varios!$C$10:$G$21,3,FALSE),VLOOKUP(E52,Varios!$C$10:$G$21,2,FALSE)),IF($D$1>28,IF(F52/4=TRUNC(F52/4),VLOOKUP(E52,Varios!$C$10:$G$21,5,FALSE),VLOOKUP(E52,Varios!$C$10:$G$21,4,FALSE)),$D$1)) -> 22 | E52: 10 | F52: =+IF(E51=E52,F51,IF(E51+1>12,F51+1,F51)) -> 2027
A53: 0 | B53: 0 | D53: =+IF($D$1=31,IF(F53/4=TRUNC(F53/4),VLOOKUP(E53,Varios!$C$10:$G$21,3,FALSE),VLOOKUP(E53,Varios!$C$10:$G$21,2,FALSE)),IF($D$1>28,IF(F53/4=TRUNC(F53/4),VLOOKUP(E53,Varios!$C$10:$G$21,5,FALSE),VLOOKUP(E53,Varios!$C$10:$G$21,4,FALSE)),$D$1)) -> 22 | E53: 11 | F53: 2027
A54: 0 | B54: 0 | D54: =+IF($D$1=31,IF(F54/4=TRUNC(F54/4),VLOOKUP(E54,Varios!$C$10:$G$21,3,FALSE),VLOOKUP(E54,Varios!$C$10:$G$21,2,FALSE)),IF($D$1>28,IF(F54/4=TRUNC(F54/4),VLOOKUP(E54,Varios!$C$10:$G$21,5,FALSE),VLOOKUP(E54,Varios!$C$10:$G$21,4,FALSE)),$D$1)) -> 22 | E54: 12 | F54: 2027
A55: 0 | B55: 0 | D55: =+IF($D$1=31,IF(F55/4=TRUNC(F55/4),VLOOKUP(E55,Varios!$C$10:$G$21,3,FALSE),VLOOKUP(E55,Varios!$C$10:$G$21,2,FALSE)),IF($D$1>28,IF(F55/4=TRUNC(F55/4),VLOOKUP(E55,Varios!$C$10:$G$21,5,FALSE),VLOOKUP(E55,Varios!$C$10:$G$21,4,FALSE)),$D$1)) -> 22 | E55: 1 | F55: 2028
A56: 0 | B56: 0 | D56: =+IF($D$1=31,IF(F56/4=TRUNC(F56/4),VLOOKUP(E56,Varios!$C$10:$G$21,3,FALSE),VLOOKUP(E56,Varios!$C$10:$G$21,2,FALSE)),IF($D$1>28,IF(F56/4=TRUNC(F56/4),VLOOKUP(E56,Varios!$C$10:$G$21,5,FALSE),VLOOKUP(E56,Varios!$C$10:$G$21,4,FALSE)),$D$1)) -> 29 | E56: 2 | F56: 2028
A57: 0 | B57: 0 | D57: =+IF($D$1=31,IF(F57/4=TRUNC(F57/4),VLOOKUP(E57,Varios!$C$10:$G$21,3,FALSE),VLOOKUP(E57,Varios!$C$10:$G$21,2,FALSE)),IF($D$1>28,IF(F57/4=TRUNC(F57/4),VLOOKUP(E57,Varios!$C$10:$G$21,5,FALSE),VLOOKUP(E57,Varios!$C$10:$G$21,4,FALSE)),$D$1)) -> 22 | E57: 3 | F57: 2028
A58: 0 | B58: 0 | D58: =+IF($D$1=31,IF(F58/4=TRUNC(F58/4),VLOOKUP(E58,Varios!$C$10:$G$21,3,FALSE),VLOOKUP(E58,Varios!$C$10:$G$21,2,FALSE)),IF($D$1>28,IF(F58/4=TRUNC(F58/4),VLOOKUP(E58,Varios!$C$10:$G$21,5,FALSE),VLOOKUP(E58,Varios!$C$10:$G$21,4,FALSE)),$D$1)) -> 22 | E58: 4 | F58: 2028
A59: 0 | B59: 0 | D59: =+IF($D$1=31,IF(F59/4=TRUNC(F59/4),VLOOKUP(E59,Varios!$C$10:$G$21,3,FALSE),VLOOKUP(E59,Varios!$C$10:$G$21,2,FALSE)),IF($D$1>28,IF(F59/4=TRUNC(F59/4),VLOOKUP(E59,Varios!$C$10:$G$21,5,FALSE),VLOOKUP(E59,Varios!$C$10:$G$21,4,FALSE)),$D$1)) -> 22 | E59: 5 | F59: 2028
A60: 0 | B60: 0 | D60: =+IF($D$1=31,IF(F60/4=TRUNC(F60/4),VLOOKUP(E60,Varios!$C$10:$G$21,3,FALSE),VLOOKUP(E60,Varios!$C$10:$G$21,2,FALSE)),IF($D$1>28,IF(F60/4=TRUNC(F60/4),VLOOKUP(E60,Varios!$C$10:$G$21,5,FALSE),VLOOKUP(E60,Varios!$C$10:$G$21,4,FALSE)),$D$1)) -> 22 | E60: 6 | F60: 2028
A61: 0 | B61: 0 | D61: =+IF($D$1=31,IF(F61/4=TRUNC(F61/4),VLOOKUP(E61,Varios!$C$10:$G$21,3,FALSE),VLOOKUP(E61,Varios!$C$10:$G$21,2,FALSE)),IF($D$1>28,IF(F61/4=TRUNC(F61/4),VLOOKUP(E61,Varios!$C$10:$G$21,5,FALSE),VLOOKUP(E61,Varios!$C$10:$G$21,4,FALSE)),$D$1)) -> 22 | E61: 7 | F61: 2028
A62: 0 | B62: 0 | D62: =+IF($D$1=31,IF(F62/4=TRUNC(F62/4),VLOOKUP(E62,Varios!$C$10:$G$21,3,FALSE),VLOOKUP(E62,Varios!$C$10:$G$21,2,FALSE)),IF($D$1>28,IF(F62/4=TRUNC(F62/4),VLOOKUP(E62,Varios!$C$10:$G$21,5,FALSE),VLOOKUP(E62,Varios!$C$10:$G$21,4,FALSE)),$D$1)) -> 22 | E62: 8 | F62: 2028
A63: 0 | B63: 0 | D63: =+IF($D$1=31,IF(F63/4=TRUNC(F63/4),VLOOKUP(E63,Varios!$C$10:$G$21,3,FALSE),VLOOKUP(E63,Varios!$C$10:$G$21,2,FALSE)),IF($D$1>28,IF(F63/4=TRUNC(F63/4),VLOOKUP(E63,Varios!$C$10:$G$21,5,FALSE),VLOOKUP(E63,Varios!$C$10:$G$21,4,FALSE)),$D$1)) -> 22 | E63: 9 | F63: 2028
A64: 0 | B64: 0 | D64: =+IF($D$1=31,IF(F64/4=TRUNC(F64/4),VLOOKUP(E64,Varios!$C$10:$G$21,3,FALSE),VLOOKUP(E64,Varios!$C$10:$G$21,2,FALSE)),IF($D$1>28,IF(F64/4=TRUNC(F64/4),VLOOKUP(E64,Varios!$C$10:$G$21,5,FALSE),VLOOKUP(E64,Varios!$C$10:$G$21,4,FALSE)),$D$1)) -> 22 | E64: 10 | F64: 2028
A65: 0 | B65: 0 | D65: =+IF($D$1=31,IF(F65/4=TRUNC(F65/4),VLOOKUP(E65,Varios!$C$10:$G$21,3,FALSE),VLOOKUP(E65,Varios!$C$10:$G$21,2,FALSE)),IF($D$1>28,IF(F65/4=TRUNC(F65/4),VLOOKUP(E65,Varios!$C$10:$G$21,5,FALSE),VLOOKUP(E65,Varios!$C$10:$G$21,4,FALSE)),$D$1)) -> 22 | E65: 11 | F65: =+IF(E64=E65,F64,IF(E64+1>12,F64+1,F64)) -> 2028
A66: 0 | B66: 0 | D66: =+IF($D$1=31,IF(F66/4=TRUNC(F66/4),VLOOKUP(E66,Varios!$C$10:$G$21,3,FALSE),VLOOKUP(E66,Varios!$C$10:$G$21,2,FALSE)),IF($D$1>28,IF(F66/4=TRUNC(F66/4),VLOOKUP(E66,Varios!$C$10:$G$21,5,FALSE),VLOOKUP(E66,Varios!$C$10:$G$21,4,FALSE)),$D$1)) -> 22 | E66: 12 | F66: 2028
A67: 0 | B67: 0 | D67: =+IF($D$1=31,IF(F67/4=TRUNC(F67/4),VLOOKUP(E67,Varios!$C$10:$G$21,3,FALSE),VLOOKUP(E67,Varios!$C$10:$G$21,2,FALSE)),IF($D$1>28,IF(F67/4=TRUNC(F67/4),VLOOKUP(E67,Varios!$C$10:$G$21,5,FALSE),VLOOKUP(E67,Varios!$C$10:$G$21,4,FALSE)),$D$1)) -> 22 | E67: 1 | F67: 2029
A68: 0 | B68: 0 | D68: =+IF($D$1=31,IF(F68/4=TRUNC(F68/4),VLOOKUP(E68,Varios!$C$10:$G$21,3,FALSE),VLOOKUP(E68,Varios!$C$10:$G$21,2,FALSE)),IF($D$1>28,IF(F68/4=TRUNC(F68/4),VLOOKUP(E68,Varios!$C$10:$G$21,5,FALSE),VLOOKUP(E68,Varios!$C$10:$G$21,4,FALSE)),$D$1)) -> 28 | E68: 2 | F68: 2029
A69: 0 | B69: 0 | D69: =+IF($D$1=31,IF(F69/4=TRUNC(F69/4),VLOOKUP(E69,Varios!$C$10:$G$21,3,FALSE),VLOOKUP(E69,Varios!$C$10:$G$21,2,FALSE)),IF($D$1>28,IF(F69/4=TRUNC(F69/4),VLOOKUP(E69,Varios!$C$10:$G$21,5,FALSE),VLOOKUP(E69,Varios!$C$10:$G$21,4,FALSE)),$D$1)) -> 22 | E69: 3 | F69: 2029
A70: 0 | B70: 0 | D70: =+IF($D$1=31,IF(F70/4=TRUNC(F70/4),VLOOKUP(E70,Varios!$C$10:$G$21,3,FALSE),VLOOKUP(E70,Varios!$C$10:$G$21,2,FALSE)),IF($D$1>28,IF(F70/4=TRUNC(F70/4),VLOOKUP(E70,Varios!$C$10:$G$21,5,FALSE),VLOOKUP(E70,Varios!$C$10:$G$21,4,FALSE)),$D$1)) -> 22 | E70: 4 | F70: 2029
A71: 0 | B71: 0 | D71: =+IF($D$1=31,IF(F71/4=TRUNC(F71/4),VLOOKUP(E71,Varios!$C$10:$G$21,3,FALSE),VLOOKUP(E71,Varios!$C$10:$G$21,2,FALSE)),IF($D$1>28,IF(F71/4=TRUNC(F71/4),VLOOKUP(E71,Varios!$C$10:$G$21,5,FALSE),VLOOKUP(E71,Varios!$C$10:$G$21,4,FALSE)),$D$1)) -> 22 | E71: 5 | F71: 2029
A72: 0 | B72: 0 | D72: =+IF($D$1=31,IF(F72/4=TRUNC(F72/4),VLOOKUP(E72,Varios!$C$10:$G$21,3,FALSE),VLOOKUP(E72,Varios!$C$10:$G$21,2,FALSE)),IF($D$1>28,IF(F72/4=TRUNC(F72/4),VLOOKUP(E72,Varios!$C$10:$G$21,5,FALSE),VLOOKUP(E72,Varios!$C$10:$G$21,4,FALSE)),$D$1)) -> 22 | E72: 6 | F72: 2029
A73: 0 | B73: 0 | D73: =+IF($D$1=31,IF(F73/4=TRUNC(F73/4),VLOOKUP(E73,Varios!$C$10:$G$21,3,FALSE),VLOOKUP(E73,Varios!$C$10:$G$21,2,FALSE)),IF($D$1>28,IF(F73/4=TRUNC(F73/4),VLOOKUP(E73,Varios!$C$10:$G$21,5,FALSE),VLOOKUP(E73,Varios!$C$10:$G$21,4,FALSE)),$D$1)) -> 22 | E73: 7 | F73: 2029

Sheet Varios
C1: Moneda | D1: Portes+Seg | E1: Portes | F1: Adm. Pol. End | G1: Desgravamen | K1: Envío de estado de cuenta
B2: 1 | C2: Soles | D2: =+E2 -> 10 | E2: 10 | F2: 0 | G2: Individual | H2: 0.00115 | J2: 1
B3: 2 | D3: =+E3 -> 3.8 | E3: 3.8 | F3: 0 | G3: Con Retorno | H3: 0.00145 | J3: 2 | K3: Virtual
C4: 1 | D4: =+C4 -> 1 | F4: =+IF(G5=2,IF(C4=1,F2,F3),0) -> 0 | G4: Endosado | H4: 0
G5: 1 | K5: 2
D8: Para pago 31 | F8: Para pago 29 o 30
C9: Mes | D9: Año Normal | E9: Año Bisiesto | F9: Año Normal | G9: Año Bisiesto | I9: Seguro optativo de Protección Financiera – SPF
C10: 1 | D10: 31 | E10: =+D10 -> 31 | F10: =DAY(Datos!$H$7) -> 22 | G10: =DAY(Datos!$H$7) -> 22
C11: 2 | D11: 28 | E11: 29 | F11: 28 | G11: 29 | K11: Tasa | M11: Cuota con SPF | N11: Cuota sin SPF
C12: 3 | D12: 31 | E12: =+D12 -> 31 | F12: =DAY(Datos!$H$7) -> 22 | G12: =DAY(Datos!$H$7) -> 22 | J12: Con SPF | K12: 0.00192 | M12: 530.3535723 | N12: 530.3535723
C13: 4 | D13: 30 | E13: =+D13 -> 30 | F13: =DAY(Datos!$H$7) -> 22 | G13: =DAY(Datos!$H$7) -> 22 | J13: Sin SPF | K13: 0
C14: 5 | D14: 31 | E14: 31 | F14: =DAY(Datos!$H$7) -> 22 | G14: =DAY(Datos!$H$7) -> 22
C15: 6 | D15: 30 | E15: 30 | F15: =DAY(Datos!$H$7) -> 22 | G15: =DAY(Datos!$H$7) -> 22 | K15: 2 | L15: =+IF(K15<>1,"",Datos!$H$27*Varios!$K$12) -> 
C16: 7 | D16: 31 | E16: 31 | F16: =DAY(Datos!$H$7) -> 22 | G16: =DAY(Datos!$H$7) -> 22
C17: 8 | D17: 31 | E17: 31 | F17: =DAY(Datos!$H$7) -> 22 | G17: =DAY(Datos!$H$7) -> 22
C18: 9 | D18: 30 | E18: 30 | F18: =DAY(Datos!$H$7) -> 22 | G18: =DAY(Datos!$H$7) -> 22
C19: 10 | D19: 31 | E19: 31 | F19: =DAY(Datos!$H$7) -> 22 | G19: =DAY(Datos!$H$7) -> 22
C20: 11 | D20: 30 | E20: 30 | F20: =DAY(Datos!$H$7) -> 22 | G20: =DAY(Datos!$H$7) -> 22
C21: 12 | D21: 31 | E21: 31 | F21: =DAY(Datos!$H$7) -> 22 | G21: =DAY(Datos!$H$7) -> 22
F23: SOLES | G23: DOLARES
B24: =+C24&D24 -> 1Ingresos de S/. 700 a S/. 1,199 | C24: 1 | D24: Ingresos de S/. 700 a S/. 1,199 | F24: 0.605 | G24: =+F24 -> 0.605
B25: 1Ingresos de S/. 1,200 a S/. 1,799 | C25: 1 | D25: Ingresos de S/. 1,200 a S/. 1,799 | F25: 0.43 | G25: =+F25 -> 0.43
B26: 1Ingresos de S/. 1,800 a S/. 2,599 | C26: 1 | D26: Ingresos de S/. 1,800 a S/. 2,599 | F26: 0.43 | G26: 0.43
B27: 1Ingresos de S/. 2,600 a S/. 3,799 | C27: 1 | D27: Ingresos de S/. 2,600 a S/. 3,799 | F27: 0.385 | G27: 0.385 | I27: Segmento | K27: 1 | L27: 2 | O27: Final
B28: 1Ingresos de S/. 3,800 a S/. 4,999 | C28: 1 | D28: Ingresos de S/. 3,800 a S/. 4,999 | F28: 0.365 | G28: 0.365 | J28: 1 | K28: Ingresos de S/. 700 a S/. 1,199 | L28: Ingresos de S/. 700 a S/. 1,199 | O28: =IF($I$33=3,"Otros",IF(IF($I$33=1,K28,L28)=0,"",IF($I$33=1,K28,L28))) -> Otros
B29: 1Ingresos de S/. 5,000 a S/. 7,499 | C29: 1 | D29: Ingresos de S/. 5,000 a S/. 7,499 | F29: 0.365 | G29: 0.365 | J29: =+J28+1 -> 2 | K29: Ingresos de S/. 1,200 a S/. 1,799 | L29: Ingresos de S/. 1,200 a S/. 1,799 | O29: =IF($I$33=3,"Otros",IF(IF($I$33=1,K29,L29)=0,"",IF($I$33=1,K29,L29))) -> Otros
B30: 1Ingresos de S/. 7,500 a S/. 14,999 | C30: 1 | D30: Ingresos de S/. 7,500 a S/. 14,999 | F30: 0.355 | G30: 0.355 | I30: Otros | J30: =+J29+1 -> 3 | K30: Ingresos de S/. 1,800 a S/. 2,599 | L30: Ingresos de S/. 1,800 a S/. 2,599 | O30: Otros
B31: 1Ingresos de S/. 15,000 a más | C31: 1 | D31: Ingresos de S/. 15,000 a más | F31: 0.34 | G31: 0.34 | J31: =+J30+1 -> 4 | K31: Ingresos de S/. 2,600 a S/. 3,799 | L31: Ingresos de S/. 2,600 a S/. 3,799 | O31: Otros
B32: 1Garantía: Dep. a Plazo y CBME | C32: 1 | D32: =+K36 -> Garantía: Dep. a Plazo y CBME | F32: 0.11 | G32: 0.11 | J32: 5 | K32: Ingresos de S/. 3,800 a S/. 4,999 | L32: Ingresos de S/. 3,800 a S/. 4,999 | O32: Otros
B33: 1Garantía: Fondos Mutuos | C33: 1 | D33: =+K37 -> Garantía: Fondos Mutuos | F33: 0.12 | G33: 0.12 | I33: 3 | J33: 6 | K33: Ingresos de S/. 5,000 a S/. 7,499 | L33: Ingresos de S/. 5,000 a S/. 7,499 | O33: Otros
B34: 1Otros | C34: 1 | D34: =+K38 -> Otros | F34: =Datos!H17 -> 0.959 | G34: 0.959 | J34: 7 | K34: Ingresos de S/. 7,500 a S/. 14,999 | L34: Ingresos de S/. 7,500 a S/. 14,999 | O34: Otros
B35: 2Ingresos de S/. 700 a S/. 1,199 | C35: 2 | D35: Ingresos de S/. 700 a S/. 1,199 | F35: 0.62 | G35: 0.62 | J35: 8 | K35: Ingresos de S/. 15,000 a más | L35: Ingresos de S/. 15,000 a más | O35: Otros
B36: 2Ingresos de S/. 1,200 a S/. 1,799 | C36: 2 | D36: Ingresos de S/. 1,200 a S/. 1,799 | F36: 0.445 | G36: 0.445 | J36: 9 | K36: Garantía: Dep. a Plazo y CBME | L36: Garantía: Dep. a Plazo y CBME | O36: Otros
B37: 2Ingresos de S/. 1,800 a S/. 2,599 | C37: 2 | D37: Ingresos de S/. 1,800 a S/. 2,599 | F37: 0.445 | G37: 0.445 | J37: 10 | K37: Garantía: Fondos Mutuos | L37: Garantía: Fondos Mutuos | O37: Otros
B38: 2Ingresos de S/. 2,600 a S/. 3,799 | C38: 2 | D38: Ingresos de S/. 2,600 a S/. 3,799 | F38: 0.4 | G38: 0.4 | J38: 11 | K38: Otros | L38: Otros | O38: Otros
B39: 2Ingresos de S/. 3,800 a S/. 4,999 | C39: 2 | D39: Ingresos de S/. 3,800 a S/. 4,999 | F39: 0.38 | G39: 0.38 | O39: 11
B40: 2Ingresos de S/. 5,000 a S/. 7,499 | C40: 2 | D40: Ingresos de S/. 5,000 a S/. 7,499 | F40: 0.365 | G40: 0.365
B41: 2Ingresos de S/. 7,500 a S/. 14,999 | C41: 2 | D41: Ingresos de S/. 7,500 a S/. 14,999 | F41: 0.355 | G41: 0.355
B42: 2Ingresos de S/. 15,000 a más | C42: 2 | D42: Ingresos de S/. 15,000 a más | F42: 0.34 | G42: 0.34 | P42: TASA
B43: 2Garantía: Dep. a Plazo y CBME | C43: 2 | D43: Garantía: Dep. a Plazo y CBME | F43: 0.11 | G43: 0.11 | O43: =+VLOOKUP(O39,J28:O38,6,FALSE) -> Otros | P43: =+IF(Varios!$I$33=3,VLOOKUP("Otros",Varios!$D$24:$G$60,3,FALSE),VLOOKUP(Varios!I33&Varios!O43,Varios!B24:G60,IF(Varios!C4=1,5,6),FALSE)) -> 0.959
B44: 2Garantía: Fondos Mutuos | C44: 2 | D44: Garantía: Fondos Mutuos | F44: 0.12 | G44: 0.12
B45: 2Otros | C45: 2 | D45: Otros | F45: =Datos!H17 -> 0.959 | G45: 0.959
C63: Fecha de Pagos | D63: Día | F63: Plazos | G63: Día
C64: 1 | D64: 15 | F64: 1 | G64: 1
C65: 2 | D65: 20 | F65: 2 | G65: 0
C66: 3 | D66: 25 | F66: 3 | G66: 0
C67: 4 | D67: 30 | F67: 4 | G67: 0
C68: 5 | D68: 35 | F68: 5 | G68: 0
F69: 6 | G69: 0
F70: 7 | G70: 0
C71: 4 | D71: =VLOOKUP(C71,$C$64:$D$69,2,0) -> 30
F72: 1 | G72: =+VLOOKUP(F72,F63:G71,2,0) -> 1
